fUSD/lending_fUSD_20260404
["ID","MTS","AMOUNT","RATE_DAILY","PERIOD"]
[419674875,1775278257091,-640.51,0.00035616,9]
[419674876,1775278257099,-589.901202,0.00035616,7]
[419674877,1775278257108,-2193.09,0.00035616,9]
[419674878,1775278257118,-500.0,0.00035616,9]
[419674879,1775278257126,-500.0,0.00035616,9]
[419674880,1775278257135,-589.901202,0.00035616,7]
[419674881,1775278257145,-391.658756,0.00035616,7]
[419674882,1775278257155,-1630.69,0.00035616,9]
[419674883,1775278257164,-589.901202,0.00035616,7]
[419674884,1775278257175,-391.658756,0.00035616,7]
[419674885,1775278257187,-500.0,0.00035616,9]
[419674886,1775278257196,-626.41,0.00035616,9]
[419674887,1775278257206,-589.901202,0.00035616,7]
[419674888,1775278257215,-973.64,0.00035616,9]
[419674889,1775278257225,-391.658756,0.00035616,7]
[419674890,1775278257234,-500.0,0.00035616,9]
[419674891,1775278257244,-799.63,0.00035616,9]
[419674892,1775278257254,-391.658756,0.00035616,7]
[419674893,1775278257264,-330.93336352,0.00035616,9]
[419674894,1775278257275,-500.0,0.00035616,9]
[419674895,1775278257284,-1704.35,0.00035616,4]
[419674896,1775278257294,-500.0,0.00035616,9]
[419674897,1775278257304,-500.0,0.00035616,9]
[419674898,1775278257314,-500.0,0.00035616,9]
[419674899,1775278257325,-731.71,0.00035616,9]
[419674900,1775278257335,-500.0,0.00035616,9]
[419674901,1775278257347,-659.46,0.00035616,9]
[419674902,1775278257358,-1021.94,0.00035616,9]
[419674903,1775278257370,-500.0,0.00035616,9]
[419674904,1775278257380,-500.0,0.00035616,9]
[419674905,1775278257390,-1000.0,0.00035616,9]
[419674906,1775278257400,-151.11859336,0.00035616,9]
[419674907,1775278257411,-779.38,0.00035616,9]
[419674908,1775278257420,-500.0,0.00035616,9]
[419674909,1775278257431,-500.0,0.00035616,9]
[419674910,1775278257441,-500.0,0.00035616,9]
[419674911,1775278257450,-500.0,0.00035616,9]
[419674912,1775278257460,-500.0,0.00035616,9]
[419674913,1775278257470,-500.0,0.00035616,9]
[419674914,1775278257480,-500.0,0.00035616,9]
[419674915,1775278257489,-500.0,0.00035616,9]
[419674916,1775278257498,-500.0,0.00035616,9]
[419674917,1775278257507,-11770.86,0.00035616,9]
[419674918,1775278257517,-500.0,0.00035616,9]
[419674919,1775278257526,-711.01,0.00035616,9]
[419674920,1775278257535,-509.47484554,0.00035616,9]
[419674921,1775278257550,-918.91,0.00035616,9]
[419674922,1775278257559,-822.76,0.00035616,9]
[419674923,1775278257568,-500.0,0.00035616,9]
[419674924,1775278257578,-500.0,0.00035616,9]
[419674925,1775278257588,-1288.91,0.00035616,9]
[419674926,1775278257597,-2077.05,0.00035616,9]
[419674927,1775278257606,-778.41,0.00035616,9]
[419674928,1775278257616,-500.0,0.00035616,9]
[419674929,1775278257625,-500.0,0.00035616,9]
[419674930,1775278257635,-500.0,0.00035616,9]
[419674931,1775278257644,-500.0,0.00035616,9]
[419674932,1775278257653,-500.0,0.00035616,9]
[419674933,1775278257663,-1126.98,0.00035616,9]
[419674934,1775278257672,-500.0,0.00035616,9]
[419674935,1775278257682,-500.0,0.00035616,9]
[419674936,1775278257692,-500.0,0.00035616,9]
[419674937,1775278257701,-500.0,0.00035616,9]
[419674938,1775278257711,-852.29,0.00035616,9]
[419674939,1775278257720,-597.75,0.00035616,9]
[419674940,1775278257729,-749.58,0.00035616,9]
[419674941,1775278257739,-1447.5,0.00035616,9]
[419674942,1775278257748,-500.0,0.00035616,9]
[419674943,1775278257758,-500.0,0.00035616,9]
[419674944,1775278257767,-500.0,0.00035616,9]
[419674945,1775278257776,-500.0,0.00035616,9]
[419674946,1775278257786,-500.0,0.00035616,9]
[419674947,1775278257795,-500.0,0.00035616,9]
[419674948,1775278257805,-13734.68,0.00035616,9]
[419674949,1775278257814,-500.0,0.00035616,9]
[419674950,1775278257824,-500.0,0.00035616,9]
[419674951,1775278257833,-1051.09,0.00035616,9]
[419674952,1775278257844,-500.0,0.00035616,9]
[419674953,1775278257853,-151.0,0.00035616,7]
[419674954,1775278257864,-1211.04,0.00035616,9]
[419674955,1775278257874,-151.0,0.00035616,7]
[419674956,1775278257884,-562.37,0.00035616,9]
[419674957,1775278257894,-500.0,0.00035616,9]
[419674958,1775278257904,-500.0,0.00035616,9]
[419674959,1775278257916,-500.0,0.00035616,9]
[419674960,1775278257926,-756.26,0.00035616,9]
[419674961,1775278257936,-1590.77,0.00035616,9]
[419674962,1775278257946,-1274.82,0.00035616,9]
[419674963,1775278257956,-500.0,0.00035616,9]
[419674964,1775278257965,-963.97,0.00035616,9]
[419674965,1775278257977,-269.23828727,0.00035616,9]
[419674966,1775278257987,-585.27,0.00035616,9]
[419674967,1775278257997,-500.0,0.00035616,9]
[419674968,1775278258006,-851.14,0.00035616,9]
[419674969,1775278258016,-557.84288181,0.00035616,9]
[419674970,1775278258026,-1707.71,0.00035616,9]
[419674971,1775278258035,-502.69,0.00035616,9]
[419674972,1775278258046,-806.91,0.00035616,9]
[419674973,1775278258056,-500.0,0.00035616,9]
[419674974,1775278258065,-500.0,0.00035616,9]
[419674975,1775278258075,-500.0,0.00035616,9]
[419674976,1775278258084,-500.0,0.00035616,9]
[419674977,1775278258095,-151.0,0.00035723,14]
[419674978,1775278258104,-151.0,0.00035723,14]
[419674979,1775278258114,-666.0,0.00035725,30]
[419674980,1775278258124,-673.90400487,0.00035725,9]
[419674981,1775278258134,-673.90400487,0.00035725,9]
[419674982,1775278258143,-500.0,0.00035726,9]
[419674983,1775278258153,-500.0,0.00035726,9]
[419674984,1775278258162,-497.89554429,0.00035726,9]
[419674985,1775278258172,-181.55913433,0.00035726,9]
[419674986,1775278258182,-500.0,0.00035726,9]
[419674987,1775278258191,-500.0,0.00035726,9]
[419674988,1775278258201,-500.0,0.00035726,9]
[419674989,1775278258211,-500.0,0.00035726,9]
[419674990,1775278258221,-500.0,0.00035726,9]
[419674991,1775278258231,-500.0,0.00035726,9]
[419674992,1775278258241,-500.0,0.00035726,9]
[419674993,1775278258251,-500.72590811,0.00035726,9]
[419674994,1775278258261,-500.0,0.00035726,9]
[419674995,1775278258271,-500.0,0.00035726,9]
[419674996,1775278258281,-500.0,0.00035726,9]
[419674997,1775278258291,-500.0,0.00035726,9]
[419674998,1775278258301,-500.0,0.00035726,9]
[419674999,1775278258311,-500.0,0.00035726,2]
[419675000,1775278258321,-500.0,0.00035726,9]
[419675001,1775278258330,-500.0,0.00035726,9]
[419675002,1775278258340,-513.97530565,0.00035726,9]
[419675003,1775278258350,-500.0,0.00035726,9]
[419675004,1775278258360,-500.0,0.00035726,9]
[419675005,1775278258370,-320.65073766,0.00035726,9]
[419675006,1775278258380,-417.82822784,0.00035726,9]
[419675007,1775278258390,-500.0,0.00035726,9]
[419675008,1775278258399,-500.0,0.00035726,9]
[419675009,1775278258409,-500.0,0.00035726,9]
[419675010,1775278258420,-501.70373192,0.00035726,9]
[419675011,1775278258430,-1654.57,0.00035726,9]
[419675012,1775278258440,-631.05,0.00035726,9]
[419675013,1775278258450,-520.98731523,0.00035726,9]
[419675014,1775278258460,-500.0,0.00035726,9]
[419675015,1775278258470,-630.66034851,0.00035726,9]
[419675016,1775278258480,-500.0,0.00035726,9]
[419675017,1775278258490,-500.0,0.00035726,9]
[419675018,1775278258500,-500.0,0.00035726,9]
[419675019,1775278258510,-500.0,0.00035726,9]
[419675020,1775278258520,-500.0,0.00035726,9]
[419675021,1775278258531,-500.0,0.00035726,9]
[419675022,1775278258541,-606.54,0.00035726,9]
[419675023,1775278258551,-186.53423692,0.00035726,9]
[419675024,1775278258562,-500.0,0.00035726,9]
[419675025,1775278258572,-500.0,0.00035726,9]
[419675026,1775278258582,-500.0,0.00035726,9]
[419675027,1775278258593,-500.0,0.00035726,9]
[419675028,1775278258603,-500.0,0.00035726,9]
[419675029,1775278258613,-529.30259359,0.00035726,9]
[419675030,1775278258623,-500.0,0.00035726,9]
[419675031,1775278258633,-500.0,0.00035726,9]
[419675032,1775278258643,-500.0,0.00035726,9]
[419675033,1775278258653,-802.74,0.00035726,9]
[419675034,1775278258664,-500.0,0.00035726,2]
[419675035,1775278258673,-500.0,0.00035726,9]
[419675036,1775278258683,-500.0,0.00035726,9]
[419675037,1775278258693,-521.47435367,0.00035726,9]
[419675038,1775278258703,-500.0,0.00035726,9]
[419675039,1775278258723,-1123.46,0.00035726,9]
[419675040,1775278258736,-500.0,0.00035726,9]
[419675041,1775278258747,-500.0,0.00035726,9]
[419675042,1775278258757,-500.0,0.00035726,9]
[419675043,1775278258767,-500.0,0.00035726,9]
[419675044,1775278258778,-500.0,0.00035726,9]
[419675045,1775278258789,-500.0,0.00035726,9]
[419675046,1775278258800,-500.0,0.00035726,9]
[419675047,1775278258811,-500.0,0.00035726,9]
[419675048,1775278258821,-1338.82,0.00035726,9]
[419675049,1775278258832,-500.0,0.00035726,9]
[419675050,1775278258843,-500.0,0.00035726,9]
[419675051,1775278258853,-500.0,0.00035726,9]
[419675052,1775278258864,-500.0,0.00035726,9]
[419675053,1775278258875,-500.0,0.00035726,9]
[419675054,1775278258885,-500.0,0.00035726,9]
[419675055,1775278258895,-500.0,0.00035726,9]
[419675056,1775278258906,-500.0,0.00035726,9]
[419675057,1775278258916,-500.0,0.00035726,9]
[419675058,1775278258927,-500.0,0.00035726,9]
[419675059,1775278258938,-500.0,0.00035726,9]
[419675060,1775278258949,-500.0,0.00035726,9]
[419675061,1775278258959,-1209.29,0.00035726,9]
[419675062,1775278258970,-500.0,0.00035726,9]
[419675063,1775278258982,-500.0,0.00035726,9]
[419675064,1775278258992,-500.0,0.00035726,9]
[419675065,1775278259002,-500.0,0.00035726,9]
[419675066,1775278259014,-500.0,0.00035726,9]
[419675067,1775278259024,-500.0,0.00035726,9]
[419675068,1775278259035,-500.0,0.00035726,9]
[419675069,1775278259045,-500.0,0.00035726,9]
[419675070,1775278259055,-990.0,0.00035726,9]
[419675071,1775278259067,-500.0,0.00035726,9]
[419675072,1775278259078,-500.0,0.00035726,9]
[419675073,1775278259088,-500.0,0.00035726,9]
[419675074,1775278259098,-480.74196206,0.00035726,9]
[419675075,1775278259110,-500.0,0.00035726,9]
[419675076,1775278259122,-500.0,0.00035726,9]
[419675077,1775278259135,-500.0,0.00035726,9]
[419675078,1775278259146,-500.0,0.00035726,9]
[419675079,1775278259159,-284.19134253,0.00035726,9]
[419675080,1775278259171,-500.0,0.00035726,9]
[419675081,1775278259184,-500.0,0.00035726,9]
[419675082,1775278259193,-504.39249861,0.00035726,9]
[419675083,1775278259204,-500.0,0.00035726,9]
[419675084,1775278259214,-500.0,0.00035726,9]
[419675085,1775278259224,-1194.92,0.00035726,9]
[419675086,1775278259236,-901.08,0.00035726,9]
[419675087,1775278259247,-500.0,0.00035726,9]
[419675088,1775278259258,-500.0,0.00035726,9]
[419675089,1775278259269,-500.0,0.00035726,9]
[419675090,1775278259279,-500.0,0.00035726,9]
[419675091,1775278259289,-500.0,0.00035726,9]
[419675092,1775278259298,-500.0,0.00035726,9]
[419675093,1775278259308,-500.0,0.00035726,9]
[419675094,1775278259318,-525.3405753,0.00035726,9]
[419675095,1775278259328,-500.0,0.00035726,9]
[419675096,1775278259338,-500.0,0.00035726,9]
[419675097,1775278259348,-610.34,0.00035726,9]
[419675098,1775278259358,-500.0,0.00035726,9]
[419675099,1775278259369,-663.14,0.00035726,9]
[419675100,1775278259379,-500.0,0.00035726,9]
[419675101,1775278259389,-500.0,0.00035726,9]
[419675102,1775278259399,-1294.2,0.00035726,9]
[419675103,1775278259410,-523.09,0.00035726,9]
[419675104,1775278259420,-162.49335023,0.00035726,9]
[419675105,1775278259430,-500.0,0.00035726,9]
[419675106,1775278259440,-382.02877361,0.00035726,9]
[419675107,1775278259451,-500.0,0.00035726,9]
[419675108,1775278259461,-500.0,0.00035726,9]
[419675109,1775278259471,-732.24,0.00035726,9]
[419675110,1775278259481,-512.43087606,0.00035726,9]
[419675111,1775278259491,-500.0,0.00035726,9]
[419675112,1775278259501,-1263.62,0.00035726,9]
[419675113,1775278259512,-500.0,0.00035726,9]
[419675114,1775278259863,-590.44,0.00035726,9]
[419675115,1775278259876,-500.0,0.00035726,9]
[419675116,1775278259886,-500.0,0.00035726,9]
[419675117,1775278259896,-500.0,0.00035726,9]
[419675118,1775278259907,-500.0,0.00035726,9]
[419675119,1775278259916,-500.0,0.00035726,9]
[419675120,1775278259926,-500.0,0.00035726,9]
[419675121,1775278259935,-500.0,0.00035726,9]
[419675122,1775278259947,-500.0,0.00035726,9]
[419675123,1775278259956,-500.0,0.00035726,9]
[419675124,1775278259966,-500.0,0.00035726,9]
[419675125,1775278259976,-500.0,0.00035726,9]
[419675126,1775278259986,-519.44214823,0.00035726,9]
[419675127,1775278259996,-399.1164363,0.00035726,9]
[419675128,1775278260006,-151.0,0.00035726,30]
[419675129,1775278260015,-151.0,0.00035726,30]
[419675130,1775278260026,-151.0,0.00035726,30]
[419675131,1775278260035,-500.0,0.00035726,9]
[419675132,1775278260044,-500.0,0.00035726,9]
[419675133,1775278260054,-151.0,0.00035726,30]
[419675134,1775278260063,-151.0,0.00035726,30]
[419675135,1775278260072,-500.0,0.00035726,9]
[419675136,1775278260081,-151.0,0.00035726,30]
[419675137,1775278260090,-151.0,0.00035726,30]
[419675138,1775278260099,-151.0,0.00035726,30]
[419675139,1775278260108,-151.0,0.00035726,30]
[419675140,1775278260117,-151.0,0.00035726,30]
[419675141,1775278260127,-151.0,0.00035726,30]
[419675142,1775278260136,-151.0,0.00035726,30]
[419675143,1775278260145,-500.0,0.00035726,9]
[419675144,1775278260154,-151.0,0.00035726,30]
[419675145,1775278260163,-151.0,0.00035726,30]
[419675146,1775278260172,-151.0,0.00035726,30]
[419675147,1775278260182,-151.0,0.00035726,30]
[419675148,1775278260191,-151.0,0.00035726,30]
[419675149,1775278260200,-151.0,0.00035726,30]
[419675150,1775278260210,-294.560932,0.00035726,30]
[419675151,1775278260220,-1130.85,0.00035726,9]
[419675152,1775278260229,-500.0,0.00035726,9]
[419675153,1775278260240,-277.97734841,0.00035726,9]
[419675154,1775278260250,-500.0,0.00035726,9]
[419675155,1775278260260,-500.0,0.00035726,9]
[419675156,1775278260273,-200.63868397,0.00035726,9]
[419675157,1775278260283,-500.0,0.00035726,9]
[419675158,1775278260294,-500.0,0.00035726,9]
[419675159,1775278260305,-500.0,0.00035726,9]
[419675160,1775278260315,-500.0,0.00035726,9]
[419675161,1775278260325,-500.0,0.00035726,9]
[419675162,1775278260335,-500.0,0.00035726,9]
[419675163,1775278260345,-500.18,0.00035726,9]
[419675164,1775278260355,-500.0,0.00035726,9]
[419675165,1775278260364,-500.0,0.00035726,9]
[419675166,1775278260374,-500.0,0.00035726,9]
[419675167,1775278260384,-500.0,0.00035726,9]
[419675168,1775278260394,-500.0,0.00035726,9]
[419675169,1775278260404,-500.0,0.00035726,9]
[419675170,1775278260413,-1493.0,0.00035726,9]
[419675171,1775278260423,-500.0,0.00035726,9]
[419675172,1775278260433,-500.0,0.00035726,9]
[419675173,1775278260443,-500.0,0.00035726,2]
[419675174,1775278260453,-500.0,0.00035726,9]
[419675175,1775278260463,-500.0,0.00035726,9]
[419675176,1775278260473,-872.16,0.00035726,9]
[419675177,1775278260483,-500.0,0.00035726,9]
[419675178,1775278260493,-500.0,0.00035726,9]
[419675179,1775278260503,-500.0,0.00035726,9]
[419675180,1775278260513,-1188.81,0.00035726,9]
[419675181,1775278260524,-500.0,0.00035726,9]
[419675182,1775278260534,-352.1409317,0.00035726,9]
[419675183,1775278260544,-500.0,0.00035726,9]
[419675184,1775278260555,-500.0,0.00035726,9]
[419675185,1775278260564,-500.0,0.00035726,9]
[419675186,1775278260574,-500.0,0.00035726,9]
[419675187,1775278260584,-500.0,0.00035726,9]
[419675188,1775278260594,-500.0,0.00035726,9]
[419675189,1775278260603,-500.0,0.00035726,9]
[419675190,1775278260613,-1665.9,0.00035726,9]
[419675191,1775278260623,-500.0,0.00035726,9]
[419675192,1775278260633,-500.0,0.00035726,9]
[419675193,1775278260642,-500.0,0.00035726,9]
[419675194,1775278260652,-766.85,0.00035726,9]
[419675195,1775278260661,-500.0,0.00035726,9]
[419675196,1775278260671,-500.0,0.00035726,9]
[419675197,1775278260681,-500.0,0.00035726,9]
[419675198,1775278260690,-311.93406881,0.00035726,9]
[419675199,1775278260700,-574.92,0.00035726,9]
[419675200,1775278260710,-500.0,0.00035726,9]
[419675201,1775278260719,-500.0,0.00035726,9]
[419675202,1775278260729,-610.31116317,0.00035726,9]
[419675203,1775278260738,-680.22,0.00035726,9]
[419675204,1775278260748,-585.12,0.00035726,9]
[419675205,1775278260758,-500.0,0.00035726,9]
[419675206,1775278260767,-937.98,0.00035726,9]
[419675207,1775278260777,-500.0,0.00035726,9]
[419675208,1775278260787,-1107.5,0.00035726,9]
[419675209,1775278260796,-1557.85,0.00035726,7]
[419675210,1775278260806,-991.17,0.00035726,9]
[419675211,1775278260815,-697.64,0.00035726,9]
[419675212,1775278260825,-500.0,0.00035726,9]
[419675213,1775278260835,-500.0,0.00035726,9]
[419675214,1775278260844,-500.0,0.00035726,9]
[419675215,1775278260854,-1283.56,0.00035726,9]
[419675216,1775278260863,-644.19028978,0.00035726,9]
[419675217,1775278260873,-1483.98,0.00035726,9]
[419675218,1775278260883,-500.0,0.00035726,9]
[419675219,1775278260892,-500.0,0.00035726,9]
[419675220,1775278260901,-500.0,0.00035726,9]
[419675221,1775278260911,-500.0,0.00035726,9]
[419675222,1775278260920,-500.0,0.00035726,9]
[419675223,1775278260930,-500.0,0.00035726,9]
[419675224,1775278260941,-500.0,0.00035726,9]
[419675225,1775278260950,-526.12,0.00035726,9]
[419675226,1775278260959,-500.0,0.00035726,9]
[419675227,1775278260969,-1518.75,0.00035726,9]
[419675228,1775278260978,-1156.91,0.00035726,9]
[419675229,1775278260987,-500.0,0.00035726,9]
[419675230,1775278260996,-500.0,0.00035726,9]
[419675231,1775278261005,-500.0,0.00035726,9]
[419675232,1775278261014,-500.0,0.00035726,9]
[419675233,1775278261023,-529.3,0.00035726,9]
[419675234,1775278261032,-500.0,0.00035726,9]
[419675235,1775278261041,-500.0,0.00035726,9]
[419675236,1775278261051,-500.0,0.00035726,9]
[419675237,1775278261059,-1587.77,0.00035726,9]
[419675238,1775278261069,-500.0,0.00035726,9]
[419675239,1775278261078,-681.88,0.00035726,9]
[419675240,1775278261087,-500.0,0.00035726,9]
[419675241,1775278261096,-500.0,0.00035726,9]
[419675242,1775278261105,-500.0,0.00035726,9]
[419675243,1775278261114,-500.0,0.00035726,9]
[419675244,1775278261124,-500.0,0.00035726,9]
[419675245,1775278261133,-500.0,0.00035726,9]
[419675246,1775278261142,-500.0,0.00035726,9]
[419675247,1775278261151,-500.0,0.00035726,9]
[419675248,1775278261160,-846.47,0.00035726,9]
[419675249,1775278261169,-500.0,0.00035726,9]
[419675250,1775278261178,-500.0,0.00035726,9]
[419675251,1775278261187,-500.0,0.00035726,9]
[419675252,1775278261196,-500.0,0.00035726,9]
[419675253,1775278261205,-500.0,0.00035726,9]
[419675254,1775278261215,-500.0,0.00035726,9]
[419675255,1775278261224,-326.59906583,0.00035726,9]
[419675256,1775278261234,-1767.46,0.00035726,9]
[419675257,1775278261243,-500.0,0.00035726,9]
[419675258,1775278261253,-804.46,0.00035726,9]
[419675259,1775278261262,-500.0,0.00035726,9]
[419675260,1775278261272,-500.0,0.00035726,9]
[419675261,1775278261282,-1859.82,0.00035726,9]
[419675262,1775278261291,-500.0,0.00035726,9]
[419675263,1775278261301,-500.0,0.00035726,9]
[419675264,1775278261310,-500.0,0.00035726,9]
[419675265,1775278261320,-1557.38,0.00035726,9]
[419675266,1775278261329,-500.0,0.00035726,9]
[419675267,1775278261338,-151.0,0.00035726,7]
[419675268,1775278261347,-500.0,0.00035726,9]
[419675269,1775278261356,-500.0,0.00035726,9]
[419675270,1775278261366,-500.0,0.00035726,9]
[419675271,1775278261375,-500.0,0.00035726,9]
[419675272,1775278261384,-500.0,0.00035726,9]
[419675273,1775278261395,-322.4510202,0.00035726,9]
[419675274,1775278261404,-500.0,0.00035726,9]
[419675275,1775278261414,-500.0,0.00035726,9]
[419675276,1775278261424,-500.0,0.00035726,9]
[419675277,1775278261434,-500.0,0.00035726,9]
[419675278,1775278261445,-1521.07,0.00035726,9]
[419675279,1775278261455,-741.93,0.00035726,9]
[419675280,1775278261465,-430.23622473,0.00035726,9]
[419675281,1775278261474,-1079.95,0.00035726,9]
[419675282,1775278261485,-905.27,0.00035726,7]
[419675283,1775278261494,-500.0,0.00035726,9]
[419675284,1775278261505,-500.0,0.00035726,9]
[419675285,1775278261515,-1453.37,0.00035726,9]
[419675286,1775278261524,-527.8,0.00035726,9]
[419675287,1775278261535,-975.77,0.00035726,9]
[419675288,1775278261544,-500.0,0.00035726,9]
[419675289,1775278261554,-443.80333239,0.00035726,9]
[419675290,1775278261564,-500.0,0.00035726,7]
[419675291,1775278261574,-500.0,0.00035726,9]
[419675292,1775278261583,-500.0,0.00035726,9]
[419675293,1775278261596,-500.0,0.00035726,9]
[419675294,1775278261606,-500.0,0.00035726,9]
[419675295,1775278261616,-500.0,0.00035726,9]
[419675296,1775278261625,-1067.48,0.00035726,9]
[419675297,1775278261635,-500.0,0.00035726,9]
[419675298,1775278261644,-2424.23,0.00035726,9]
[419675299,1775278261654,-502.75,0.00035726,9]
[419675300,1775278261663,-1974.87,0.00035726,9]
[419675301,1775278261672,-500.0,0.00035726,9]
[419675302,1775278261681,-500.0,0.00035726,9]
[419675303,1775278261690,-500.0,0.00035726,9]
[419675304,1775278261700,-500.0,0.00035726,9]
[419675305,1775278261710,-500.0,0.00035726,9]
[419675306,1775278261719,-973.37,0.00035726,9]
[419675307,1775278261729,-500.0,0.00035726,9]
[419675308,1775278261738,-500.0,0.00035726,9]
[419675309,1775278261748,-500.0,0.00035726,9]
[419675310,1775278261757,-500.0,0.00035726,9]
[419675311,1775278261767,-500.0,0.00035726,9]
[419675312,1775278261778,-588.89,0.00035726,9]
[419675313,1775278261788,-500.0,0.00035726,9]
[419675314,1775278261798,-500.0,0.00035726,9]
[419675315,1775278261808,-500.0,0.00035726,9]
[419675316,1775278261817,-500.0,0.00035726,9]
[419675317,1775278261826,-500.0,0.00035726,9]
[419675318,1775278261835,-500.0,0.00035726,9]
[419675319,1775278261844,-645.13131289,0.00035726,9]
[419675320,1775278261853,-500.0,0.00035726,9]
[419675321,1775278261863,-776.37,0.00035726,9]
[419675322,1775278261872,-500.0,0.00035726,9]
[419675323,1775278261881,-500.0,0.00035726,9]
[419675324,1775278261890,-500.0,0.00035726,9]
[419675325,1775278261900,-242.15361183,0.00035726,9]
[419675326,1775278261910,-500.0,0.00035726,9]
[419675327,1775278261919,-500.0,0.00035726,9]
[419675328,1775278261928,-160.95133895,0.00035726,9]
[419675329,1775278261938,-500.0,0.00035726,9]
[419675330,1775278261947,-500.0,0.00035726,9]
[419675331,1775278261956,-500.0,0.00035726,9]
[419675332,1775278261965,-500.0,0.00035726,9]
[419675333,1775278261974,-500.0,0.00035726,9]
[419675334,1775278261984,-501.46866733,0.00035726,9]
[419675335,1775278261996,-500.0,0.00035726,9]
[419675336,1775278262006,-799.84,0.00035726,9]
[419675337,1775278262015,-500.0,0.00035726,9]
[419675338,1775278262024,-500.0,0.00035726,9]
[419675339,1775278262033,-500.0,0.00035726,9]
[419675340,1775278262043,-1127.68,0.00035726,9]
[419675341,1775278262053,-500.0,0.00035726,30]
[419675342,1775278262062,-579.36940519,0.00035726,9]
[419675343,1775278262072,-757.82,0.00035726,9]
[419675344,1775278262082,-937.52,0.00035726,9]
[419675345,1775278262092,-500.0,0.00035726,9]
[419675346,1775278262103,-500.0,0.00035726,9]
[419675347,1775278262116,-500.0,0.00035726,9]
[419675348,1775278262127,-500.0,0.00035726,9]
[419675349,1775278262138,-500.0,0.00035726,9]
[419675350,1775278262148,-500.0,0.00035726,9]
[419675351,1775278262158,-500.0,0.00035726,9]
[419675352,1775278262261,-500.0,0.00035726,9]
[419675353,1775278262271,-500.0,0.00035726,9]
[419675354,1775278262281,-500.0,0.00035726,9]
[419675355,1775278262291,-797.42,0.00035726,9]
[419675356,1775278262300,-636.1,0.00035726,9]
[419675357,1775278262309,-500.0,0.00035726,9]
[419675358,1775278262319,-500.0,0.00035726,9]
[419675359,1775278262329,-1082.72,0.00035726,9]
[419675360,1775278262338,-500.0,0.00035726,9]
[419675361,1775278262347,-500.0,0.00035726,9]
[419675362,1775278262356,-500.0,0.00035726,9]
[419675363,1775278262365,-500.0,0.00035726,9]
[419675364,1775278262374,-500.0,0.00035726,9]
[419675365,1775278262384,-500.0,0.00035726,9]
[419675366,1775278262392,-500.0,0.00035726,9]
[419675367,1775278262401,-477.49357101,0.00035726,9]
[419675368,1775278262410,-1585.05,0.00035726,9]
[419675369,1775278262420,-500.0,0.00035726,9]
[419675370,1775278262429,-500.0,0.00035726,9]
[419675371,1775278262439,-500.0,0.00035726,9]
[419675372,1775278262447,-500.0,0.00035726,9]
[419675373,1775278262456,-500.0,0.00035726,9]
[419675374,1775278262466,-500.0,0.00035726,9]